[Event "Titled Tuesday Blitz November 14 Late 2023"]
[White "Shuvalova, Polina"]
[Black "JackRodgers"]
[WhiteFideId "24171760"]
[WhiteElo "2683"]
[BlackElo "2522"]
[Result "0-1"]
[Round "6"]
[TimeControl "180+1"]
[Date "2023.11.14"]
[WhiteClock "0:00:01"]
[BlackClock "0:00:06"]
[Board "51"]

1. e4 {[%clk 0:03:00]}  c5 {[%clk 0:02:58]} 2. Nf3 {[%clk 0:03:00]}  g6 {[%clk 0:02:58]} 3. c3 {[%clk 0:03:00]}  Bg7 {[%clk 0:02:58]} 4. d4 {[%clk 0:03:00]}  cxd4 {[%clk 0:02:58]} 5. cxd4 {[%clk 0:03:01]}  d5 {[%clk 0:02:59]} 6. e5 {[%clk 0:03:02]}  Bg4 {[%clk 0:02:58]} 7. Nc3 {[%clk 0:03:01]}  Nc6 {[%clk 0:02:54]} 8. Bb5 {[%clk 0:03:01]}  Rc8 {[%clk 0:02:53]} 9. O-O {[%clk 0:02:59]}  Nh6 {[%clk 0:02:51]} 10. h3 {[%clk 0:02:58]}  Bxf3 {[%clk 0:02:51]} 11. Qxf3 {[%clk 0:02:59]}  Nf5 {[%clk 0:02:44]} 12. Rd1 {[%clk 0:02:48]}  e6 {[%clk 0:02:26]} 13. g4 {[%clk 0:02:39]}  Ne7 {[%clk 0:02:26]} 14. Bg5 {[%clk 0:02:38]}  Qb6 {[%clk 0:02:21]} 15. a4 {[%clk 0:02:27]}  O-O {[%clk 0:02:14]} 16. a5 {[%clk 0:02:19]}  Qc7 {[%clk 0:02:10]} 17. a6 {[%clk 0:02:11]}  bxa6 {[%clk 0:01:57]} 18. Bxa6 {[%clk 0:02:08]}  Rb8 {[%clk 0:01:56]} 19. Qe2 {[%clk 0:01:46]}  h6 {[%clk 0:01:45]} 20. Be3 {[%clk 0:01:44]}  g5 {[%clk 0:01:15]} 21. Bd3 {[%clk 0:01:41]}  Rfc8 {[%clk 0:01:06]} 22. Nb5 {[%clk 0:01:39]}  Qd7 {[%clk 0:01:05]} 23. Nd6 {[%clk 0:01:39]}  Rc7 {[%clk 0:01:04]} 24. Rdc1 {[%clk 0:01:37]}  Nc8 {[%clk 0:00:58]} 25. Nxc8 {[%clk 0:01:30]}  Qxc8 {[%clk 0:00:54]} 26. Rc3 {[%clk 0:01:24]}  Nb4 {[%clk 0:00:50]} 27. Rac1 {[%clk 0:01:18]}  Rxc3 {[%clk 0:00:46]} 28. Rxc3 {[%clk 0:01:19]}  Qd8 {[%clk 0:00:41]} 29. Bb1 {[%clk 0:01:17]}  Rc8 {[%clk 0:00:33]} 30. Kg2 {[%clk 0:01:15]}  Rxc3 {[%clk 0:00:30]} 31. bxc3 {[%clk 0:01:16]}  Nc6 {[%clk 0:00:30]} 32. Qd3 {[%clk 0:01:16]}  Qb6 {[%clk 0:00:26]} 33. Bc2 {[%clk 0:01:15]}  a5 {[%clk 0:00:25]} 34. h4 {[%clk 0:01:14]}  gxh4 {[%clk 0:00:20]} 35. Bxh6 {[%clk 0:01:04]}  Bxh6 {[%clk 0:00:19]} 36. Qh7+ {[%clk 0:01:05]}  Kf8 {[%clk 0:00:19]} 37. Qxh6+ {[%clk 0:01:04]}  Ke8 {[%clk 0:00:18]} 38. Qxh4 {[%clk 0:00:58]}  Qb2 {[%clk 0:00:17]} 39. Ba4 {[%clk 0:00:55]}  Qxc3 {[%clk 0:00:13]} 40. Qh8+ {[%clk 0:00:53]}  Ke7 {[%clk 0:00:12]} 41. Qf6+ {[%clk 0:00:52]}  Kf8 {[%clk 0:00:08]} 42. Qh8+ {[%clk 0:00:47]}  Ke7 {[%clk 0:00:08]} 43. Qc8 {[%clk 0:00:46]}  Qxd4 {[%clk 0:00:05]} 44. Qxc6 {[%clk 0:00:33]}  Qxg4+ {[%clk 0:00:05]} 45. Kf1 {[%clk 0:00:34]}  Qh3+ {[%clk 0:00:05]} 46. Ke1 {[%clk 0:00:33]}  Qh1+ {[%clk 0:00:06]} 47. Kd2 {[%clk 0:00:33]}  Qh6+ {[%clk 0:00:05]} 48. Kc2 {[%clk 0:00:26]}  Kf8 {[%clk 0:00:05]} 49. Qc5+ {[%clk 0:00:20]}  Kg7 {[%clk 0:00:04]} 50. Qxa5 {[%clk 0:00:21]}  Qf4 {[%clk 0:00:03]} 51. Qa7 {[%clk 0:00:14]}  Qxe5 {[%clk 0:00:03]} 52. Be8 {[%clk 0:00:14]}  Qf6 {[%clk 0:00:03]} 53. Qe3 {[%clk 0:00:13]}  Qf5+ {[%clk 0:00:03]} 54. Kd2 {[%clk 0:00:13]}  Kf8 {[%clk 0:00:03]} 55. Bb5 {[%clk 0:00:12]}  Ke7 {[%clk 0:00:04]} 56. Bd3 {[%clk 0:00:13]}  Qg4 {[%clk 0:00:03]} 57. Qc5+ {[%clk 0:00:13]}  Kf6 {[%clk 0:00:03]} 58. Qe3 {[%clk 0:00:11]}  d4 {[%clk 0:00:03]} 59. Qe1 {[%clk 0:00:08]}  Qf4+ {[%clk 0:00:03]} 60. Kc2 {[%clk 0:00:08]}  Qc7+ {[%clk 0:00:03]} 61. Kd1 {[%clk 0:00:08]}  Qf4 {[%clk 0:00:03]} 62. Qe2 {[%clk 0:00:08]}  e5 {[%clk 0:00:03]} 63. Qc2 {[%clk 0:00:07]}  Qf3+ {[%clk 0:00:02]} 64. Ke1 {[%clk 0:00:06]}  Qf4 {[%clk 0:00:03]} 65. Qc6+ {[%clk 0:00:06]}  Kg7 {[%clk 0:00:03]} 66. Qg2+ {[%clk 0:00:06]}  Kf6 {[%clk 0:00:04]} 67. Ke2 {[%clk 0:00:06]}  Ke7 {[%clk 0:00:04]} 68. Qd5 {[%clk 0:00:06]}  f5 {[%clk 0:00:04]} 69. Qc5+ {[%clk 0:00:04]}  Kf6 {[%clk 0:00:05]} 70. Qf8+ {[%clk 0:00:04]}  Ke6 {[%clk 0:00:05]} 71. Bc4+ {[%clk 0:00:05]}  Kd7 {[%clk 0:00:05]} 72. Qf7+ {[%clk 0:00:04]}  Kc6 {[%clk 0:00:04]} 73. Qd5+ {[%clk 0:00:04]}  Kc7 {[%clk 0:00:05]} 74. Qc5+ {[%clk 0:00:05]}  Kd7 {[%clk 0:00:05]} 75. Bb5+ {[%clk 0:00:05]}  Ke6 {[%clk 0:00:06]} 76. Bc4+ {[%clk 0:00:05]}  Kf6 {[%clk 0:00:06]} 77. Qf8+ {[%clk 0:00:05]}  Kg5 {[%clk 0:00:07]} 78. Qg7+ {[%clk 0:00:05]}  Kh4 {[%clk 0:00:06]} 79. Qh7+ {[%clk 0:00:05]}  Kg5 {[%clk 0:00:06]} 80. Qg7+ {[%clk 0:00:05]}  Kh4 {[%clk 0:00:07]} 81. Qh7+ {[%clk 0:00:05]}  Kg5 {[%clk 0:00:07]} 82. Bd5 {[%clk 0:00:05]}  Qg4+ {[%clk 0:00:07]} 83. Bf3 {[%clk 0:00:05]}  Qh4 {[%clk 0:00:06]} 84. Qg7+ {[%clk 0:00:05]}  Kf4 {[%clk 0:00:06]} 85. Qc7 {[%clk 0:00:02]}  Qf6 {[%clk 0:00:05]} 86. Bd5 {[%clk 0:00:02]}  Qa6+ {[%clk 0:00:05]} 87. Ke1 {[%clk 0:00:01]}  Qa1+ {[%clk 0:00:06]} 88. Ke2 {[%clk 0:00:02]}  Qb2+ {[%clk 0:00:06]} 89. Ke1 {[%clk 0:00:02]}  d3 {[%clk 0:00:07]} 90. Qc4+ {[%clk 0:00:01]}  e4 {[%clk 0:00:06]} 91. Be6 {[%clk 0:00:01]}  Qe2# {[%clk 0:00:06]} 0-1


[Site "https://www.chess.com"]

[Event "Titled Tuesday Blitz November 14 Late 2023"]
[White "Djokic, Mihailo"]
[Black "D`Arruda, Ricardo D."]
[WhiteFideId "976440"]
[BlackFideId "100692"]
[WhiteElo "2671"]
[BlackElo "2518"]
[Result "1-0"]
[Round "6"]
[TimeControl "180+1"]
[Date "2023.11.14"]
[WhiteClock "0:02:35"]
[BlackClock "0:00:06"]
[Board "53"]

1. e4 {[%clk 0:03:00]}  c5 {[%clk 0:00:42]} 2. c3 {[%clk 0:02:57]}  Nc6 {[%clk 0:00:43]} 3. d4 {[%clk 0:02:57]}  e6 {[%clk 0:00:43]} 4. d5 {[%clk 0:02:57]}  exd5 {[%clk 0:00:43]} 5. exd5 {[%clk 0:02:57]}  Ne5 {[%clk 0:00:40]} 6. Nf3 {[%clk 0:02:49]}  Nxf3+ {[%clk 0:00:39]} 7. Qxf3 {[%clk 0:02:50]}  Nf6 {[%clk 0:00:37]} 8. Bd3 {[%clk 0:02:50]}  Be7 {[%clk 0:00:35]} 9. O-O {[%clk 0:02:51]}  d6 {[%clk 0:00:35]} 10. c4 {[%clk 0:02:50]}  O-O {[%clk 0:00:35]} 11. Nc3 {[%clk 0:02:50]}  Bg4 {[%clk 0:00:35]} 12. Qg3 {[%clk 0:02:50]}  Qd7 {[%clk 0:00:32]} 13. h3 {[%clk 0:02:50]}  Bh5 {[%clk 0:00:31]} 14. Re1 {[%clk 0:02:49]}  Bg6 {[%clk 0:00:29]} 15. b3 {[%clk 0:02:44]}  Rfe8 {[%clk 0:00:28]} 16. Bb2 {[%clk 0:02:44]}  Bxd3 {[%clk 0:00:28]} 17. Qxd3 {[%clk 0:02:44]}  Bf8 {[%clk 0:00:28]} 18. Ne2 {[%clk 0:02:37]}  Be7 {[%clk 0:00:20]} 19. Ng3 {[%clk 0:02:37]}  g6 {[%clk 0:00:19]} 20. Qc3 {[%clk 0:02:36]}  Bd8 {[%clk 0:00:17]} 21. Rxe8+ {[%clk 0:02:35]}  Qxe8 {[%clk 0:00:18]} 22. Re1 {[%clk 0:02:35]}  Qd7 {[%clk 0:00:06]} 23. Ne4 {[%clk 0:02:35]} 1-0


[Site "https://www.chess.com"]

[Event "Titled Tuesday Blitz November 14 Late 2023"]
[White "Sztokbant, Bernardo Vainzoff"]
[Black "Adla, Diego"]
[WhiteFideId "2115956"]
[BlackFideId "100072"]
[WhiteElo "2504"]
[BlackElo "2660"]
[Result "1-0"]
[Round "6"]
[TimeControl "180+1"]
[Date "2023.11.14"]
[WhiteClock "0:00:28"]
[BlackClock "0:00:20"]
[Board "54"]

1. b3 {[%clk 0:03:00]}  e5 {[%clk 0:02:56]} 2. Bb2 {[%clk 0:03:00]}  d6 {[%clk 0:02:56]} 3. e3 {[%clk 0:02:59]}  Nf6 {[%clk 0:02:56]} 4. Nf3 {[%clk 0:02:56]}  g6 {[%clk 0:02:55]} 5. d4 {[%clk 0:02:55]}  e4 {[%clk 0:02:55]} 6. Nfd2 {[%clk 0:02:54]}  Bg7 {[%clk 0:02:54]} 7. c4 {[%clk 0:02:55]}  O-O {[%clk 0:02:54]} 8. Nc3 {[%clk 0:02:55]}  Re8 {[%clk 0:02:54]} 9. Be2 {[%clk 0:02:55]}  c5 {[%clk 0:02:54]} 10. O-O {[%clk 0:02:45]}  cxd4 {[%clk 0:02:51]} 11. exd4 {[%clk 0:02:46]}  Nc6 {[%clk 0:02:51]} 12. d5 {[%clk 0:02:31]}  Nd4 {[%clk 0:02:49]} 13. Re1 {[%clk 0:02:29]}  e3 {[%clk 0:02:35]} 14. fxe3 {[%clk 0:02:27]}  Rxe3 {[%clk 0:02:36]} 15. Nf1 {[%clk 0:02:13]}  Nxe2+ {[%clk 0:02:29]} 16. Rxe2 {[%clk 0:02:10]}  Rxe2 {[%clk 0:02:27]} 17. Qxe2 {[%clk 0:02:10]}  Bf5 {[%clk 0:02:25]} 18. Ne3 {[%clk 0:01:58]}  Qd7 {[%clk 0:02:23]} 19. Rf1 {[%clk 0:01:56]}  Re8 {[%clk 0:02:19]} 20. Qf2 {[%clk 0:01:44]}  Bd3 {[%clk 0:01:59]} 21. Rd1 {[%clk 0:01:38]}  Be4 {[%clk 0:01:36]} 22. Rf1 {[%clk 0:01:28]}  Bd3 {[%clk 0:01:14]} 23. Rd1 {[%clk 0:01:27]}  Ne4 {[%clk 0:01:15]} 24. Nxe4 {[%clk 0:01:27]}  Bxe4 {[%clk 0:01:16]} 25. Bxg7 {[%clk 0:01:26]}  Kxg7 {[%clk 0:01:17]} 26. Rf1 {[%clk 0:01:23]}  f5 {[%clk 0:01:17]} 27. Qb2+ {[%clk 0:01:15]}  Kg8 {[%clk 0:01:16]} 28. Qd4 {[%clk 0:01:13]}  b6 {[%clk 0:01:12]} 29. Nd1 {[%clk 0:01:04]}  Qe7 {[%clk 0:01:09]} 30. Nc3 {[%clk 0:01:04]}  Qe5 {[%clk 0:01:05]} 31. Qxe5 {[%clk 0:01:02]}  Rxe5 {[%clk 0:01:06]} 32. Nb5 {[%clk 0:00:51]}  Bd3 {[%clk 0:01:05]} 33. Rd1 {[%clk 0:00:48]}  Be2 {[%clk 0:00:37]} 34. Re1 {[%clk 0:00:38]}  a6 {[%clk 0:00:31]} 35. Nxd6 {[%clk 0:00:35]}  b5 {[%clk 0:00:20]} 36. Kf2 {[%clk 0:00:28]} 1-0


[Site "https://www.chess.com"]

[Event "Titled Tuesday Blitz November 14 Late 2023"]
[White "reevecanada"]
[Black "Nikologorsky, Matfei"]
[BlackFideId "24102474"]
[WhiteElo "2649"]
[BlackElo "2450"]
[Result "1-0"]
[Round "6"]
[TimeControl "180+1"]
[Date "2023.11.14"]
[WhiteClock "0:02:01"]
[BlackClock "0:00:00"]
[Board "55"]

1. e4 {[%clk 0:03:00]}  c5 {[%clk 0:02:56]} 2. Nf3 {[%clk 0:03:01]}  e6 {[%clk 0:02:55]} 3. b3 {[%clk 0:03:00]}  d5 {[%clk 0:02:52]} 4. exd5 {[%clk 0:03:01]}  exd5 {[%clk 0:02:49]} 5. Bb5+ {[%clk 0:03:01]}  Bd7 {[%clk 0:02:48]} 6. Bxd7+ {[%clk 0:03:01]}  Qxd7 {[%clk 0:02:47]} 7. O-O {[%clk 0:03:01]}  Nf6 {[%clk 0:02:47]} 8. Re1+ {[%clk 0:03:01]}  Be7 {[%clk 0:02:47]} 9. Qe2 {[%clk 0:03:02]}  Nc6 {[%clk 0:02:42]} 10. Ne5 {[%clk 0:03:02]}  Nxe5 {[%clk 0:02:40]} 11. Qxe5 {[%clk 0:03:03]}  Kf8 {[%clk 0:02:28]} 12. Bb2 {[%clk 0:02:59]}  Re8 {[%clk 0:02:23]} 13. Qe2 {[%clk 0:02:54]}  h5 {[%clk 0:02:22]} 14. h3 {[%clk 0:02:54]}  Rh6 {[%clk 0:02:22]} 15. Qf3 {[%clk 0:02:53]}  d4 {[%clk 0:01:57]} 16. d3 {[%clk 0:02:50]}  h4 {[%clk 0:01:44]} 17. Nd2 {[%clk 0:02:46]}  b6 {[%clk 0:01:38]} 18. a4 {[%clk 0:02:45]}  Nd5 {[%clk 0:01:37]} 19. Nc4 {[%clk 0:02:43]}  Rf6 {[%clk 0:01:29]} 20. Ne5 {[%clk 0:02:38]}  Qf5 {[%clk 0:01:12]} 21. Qxd5 {[%clk 0:02:36]}  Qxf2+ {[%clk 0:01:10]} 22. Kh1 {[%clk 0:02:36]}  Kg8 {[%clk 0:01:05]} 23. Nc6 {[%clk 0:02:31]}  Qxc2 {[%clk 0:00:27]} 24. Nxe7+ {[%clk 0:02:28]}  Kf8 {[%clk 0:00:27]} 25. Nc6 {[%clk 0:02:25]}  Rxe1+ {[%clk 0:00:10]} 26. Rxe1 {[%clk 0:02:23]}  g6 {[%clk 0:00:10]} 27. Bc1 {[%clk 0:02:11]}  Rf2 {[%clk 0:00:06]} 28. Bh6+ {[%clk 0:02:01]}  Kg8 {[%clk 0:00:06]} 29. Qe5 {[%clk 0:02:01]}  f6 {[%clk 0:00:00]} 30. Qe7 {[%clk 0:02:01]} 1-0


[Site "https://www.chess.com"]

[Event "Titled Tuesday Blitz November 14 Late 2023"]
[White "Ahmad, Khagan"]
[Black "szachmistrz2500"]
[WhiteFideId "13431552"]
[WhiteElo "2636"]
[BlackElo "2449"]
[Result "1-0"]
[Round "6"]
[TimeControl "180+1"]
[Date "2023.11.14"]
[WhiteClock "0:00:40"]
[BlackClock "0:00:14"]
[Board "56"]

1. Nf3 {[%clk 0:03:00]}  c5 {[%clk 0:02:53]} 2. e4 {[%clk 0:03:00]}  d6 {[%clk 0:02:51]} 3. Bb5+ {[%clk 0:02:58]}  Bd7 {[%clk 0:02:50]} 4. Bxd7+ {[%clk 0:02:57]}  Qxd7 {[%clk 0:02:51]} 5. c4 {[%clk 0:02:58]}  Nc6 {[%clk 0:02:38]} 6. Nc3 {[%clk 0:02:55]}  Nf6 {[%clk 0:02:38]} 7. d4 {[%clk 0:02:52]}  cxd4 {[%clk 0:02:38]} 8. Nxd4 {[%clk 0:02:52]}  e6 {[%clk 0:02:38]} 9. Be3 {[%clk 0:02:49]}  Be7 {[%clk 0:02:38]} 10. O-O {[%clk 0:02:50]}  Rc8 {[%clk 0:02:37]} 11. b3 {[%clk 0:02:45]}  O-O {[%clk 0:02:37]} 12. Rc1 {[%clk 0:02:45]}  Rfd8 {[%clk 0:02:32]} 13. f3 {[%clk 0:02:43]}  d5 {[%clk 0:02:27]} 14. exd5 {[%clk 0:02:38]}  exd5 {[%clk 0:02:27]} 15. cxd5 {[%clk 0:02:32]}  Nxd5 {[%clk 0:02:25]} 16. Nxd5 {[%clk 0:02:30]}  Qxd5 {[%clk 0:02:18]} 17. Nxc6 {[%clk 0:02:29]}  Rxc6 {[%clk 0:02:13]} 18. Qxd5 {[%clk 0:01:54]}  Rxd5 {[%clk 0:02:12]} 19. Rxc6 {[%clk 0:01:52]}  bxc6 {[%clk 0:02:12]} 20. Bxa7 {[%clk 0:01:47]}  Ra5 {[%clk 0:02:10]} 21. Bd4 {[%clk 0:01:43]}  Rxa2 {[%clk 0:02:09]} 22. Re1 {[%clk 0:01:44]}  Kf8 {[%clk 0:01:20]} 23. Bxg7+ {[%clk 0:01:38]}  Kxg7 {[%clk 0:01:18]} 24. Rxe7 {[%clk 0:01:38]}  Rb2 {[%clk 0:01:18]} 25. Rc7 {[%clk 0:01:34]}  Rxb3 {[%clk 0:01:17]} 26. Rxc6 {[%clk 0:01:35]}  Rb2 {[%clk 0:01:16]} 27. h4 {[%clk 0:01:24]}  f6 {[%clk 0:01:10]} 28. Kh2 {[%clk 0:01:24]}  Ra2 {[%clk 0:01:10]} 29. Kh3 {[%clk 0:01:24]}  Rb2 {[%clk 0:01:10]} 30. g4 {[%clk 0:01:24]}  Rb3 {[%clk 0:00:56]} 31. Kg3 {[%clk 0:01:22]}  Rb4 {[%clk 0:00:56]} 32. g5 {[%clk 0:01:14]}  fxg5 {[%clk 0:00:54]} 33. hxg5 {[%clk 0:01:15]}  Rb1 {[%clk 0:00:51]} 34. Kg4 {[%clk 0:01:14]}  Ra1 {[%clk 0:00:44]} 35. f4 {[%clk 0:01:10]}  Rb1 {[%clk 0:00:43]} 36. Rc7+ {[%clk 0:01:08]}  Kg8 {[%clk 0:00:43]} 37. Re7 {[%clk 0:01:04]}  Rb6 {[%clk 0:00:41]} 38. Kf5 {[%clk 0:00:57]}  h6 {[%clk 0:00:38]} 39. g6 {[%clk 0:00:55]}  Rb5+ {[%clk 0:00:36]} 40. Kf6 {[%clk 0:00:55]}  Rb6+ {[%clk 0:00:33]} 41. Re6 {[%clk 0:00:55]}  Rb8 {[%clk 0:00:33]} 42. f5 {[%clk 0:00:52]}  Ra8 {[%clk 0:00:24]} 43. g7 {[%clk 0:00:40]}  Kh7 {[%clk 0:00:20]} 44. Kf7 {[%clk 0:00:40]}  Rg8 {[%clk 0:00:17]} 45. Rxh6+ {[%clk 0:00:40]}  Kxh6 {[%clk 0:00:14]} 46. Kxg8 {[%clk 0:00:40]} 1-0


[Site "https://www.chess.com"]

[Event "Titled Tuesday Blitz November 14 Late 2023"]
[White "Stanojevic, Ilija"]
[Black "Adewumi, Tanitoluwa"]
[WhiteFideId "959995"]
[BlackFideId "30966396"]
[WhiteElo "2436"]
[BlackElo "2626"]
[Result "0-1"]
[Round "6"]
[TimeControl "180+1"]
[Date "2023.11.14"]
[WhiteClock "0:01:55"]
[BlackClock "0:00:55"]
[Board "59"]

1. e4 {[%clk 0:03:00]}  c5 {[%clk 0:02:51]} 2. Nc3 {[%clk 0:03:00]}  Nc6 {[%clk 0:02:51]} 3. f4 {[%clk 0:03:00]}  d6 {[%clk 0:02:46]} 4. Nf3 {[%clk 0:03:00]}  g6 {[%clk 0:02:46]} 5. Bb5 {[%clk 0:03:01]}  Bg7 {[%clk 0:02:46]} 6. Bxc6+ {[%clk 0:03:01]}  bxc6 {[%clk 0:02:46]} 7. d3 {[%clk 0:03:02]}  Nf6 {[%clk 0:02:46]} 8. O-O {[%clk 0:03:02]}  O-O {[%clk 0:02:46]} 9. Qe1 {[%clk 0:03:03]}  Bg4 {[%clk 0:02:44]} 10. Qh4 {[%clk 0:02:57]}  Bxf3 {[%clk 0:02:24]} 11. Rxf3 {[%clk 0:02:57]}  c4 {[%clk 0:02:13]} 12. Bd2 {[%clk 0:02:57]}  Qb6+ {[%clk 0:02:05]} 13. Kh1 {[%clk 0:02:46]}  Qxb2 {[%clk 0:01:57]} 14. Rc1 {[%clk 0:02:35]}  cxd3 {[%clk 0:01:45]} 15. Rxd3 {[%clk 0:02:31]}  d5 {[%clk 0:01:38]} 16. e5 {[%clk 0:02:29]}  d4 {[%clk 0:01:19]} 17. exf6 {[%clk 0:01:56]}  Bxf6 {[%clk 0:01:18]} 18. Qh6 {[%clk 0:01:57]}  dxc3 {[%clk 0:00:56]} 19. Rh3 {[%clk 0:01:56]}  Rfd8 {[%clk 0:00:56]} 20. Qxh7+ {[%clk 0:01:56]}  Kf8 {[%clk 0:00:56]} 21. Be3 {[%clk 0:01:56]}  Qxc1+ {[%clk 0:00:55]} 22. Bxc1 {[%clk 0:01:55]}  Rd1# {[%clk 0:00:55]} 0-1


[Site "https://www.chess.com"]

[Event "Titled Tuesday Blitz November 14 Late 2023"]
[White "Gurevich, Dmitry"]
[Black "Vlassov, Nikolai"]
[WhiteFideId "2000407"]
[BlackFideId "4103360"]
[WhiteElo "2426"]
[BlackElo "2622"]
[Result "1-0"]
[Round "6"]
[TimeControl "180+1"]
[Date "2023.11.14"]
[WhiteClock "0:00:40"]
[BlackClock "0:00:27"]
[Board "62"]

1. d4 {[%clk 0:03:00]}  Nf6 {[%clk 0:02:59]} 2. c4 {[%clk 0:02:56]}  Nc6 {[%clk 0:02:59]} 3. Nf3 {[%clk 0:02:54]}  e6 {[%clk 0:02:59]} 4. Nc3 {[%clk 0:02:53]}  Bb4 {[%clk 0:02:58]} 5. Qc2 {[%clk 0:02:52]}  d6 {[%clk 0:02:58]} 6. Bd2 {[%clk 0:02:52]}  O-O {[%clk 0:02:55]} 7. a3 {[%clk 0:02:51]}  Bxc3 {[%clk 0:02:51]} 8. Bxc3 {[%clk 0:02:51]}  Qe7 {[%clk 0:02:45]} 9. e3 {[%clk 0:02:50]}  e5 {[%clk 0:02:44]} 10. dxe5 {[%clk 0:02:49]}  dxe5 {[%clk 0:02:44]} 11. Be2 {[%clk 0:02:49]}  Bg4 {[%clk 0:02:40]} 12. O-O {[%clk 0:02:46]}  a5 {[%clk 0:02:34]} 13. b3 {[%clk 0:02:42]}  Rfe8 {[%clk 0:02:34]} 14. Rfd1 {[%clk 0:02:31]}  Nd7 {[%clk 0:02:08]} 15. h3 {[%clk 0:02:15]}  Be6 {[%clk 0:02:07]} 16. Nd2 {[%clk 0:01:55]}  f6 {[%clk 0:01:54]} 17. Bf3 {[%clk 0:01:53]}  Nc5 {[%clk 0:01:48]} 18. b4 {[%clk 0:01:47]}  axb4 {[%clk 0:01:44]} 19. axb4 {[%clk 0:01:45]}  Nd7 {[%clk 0:01:44]} 20. b5 {[%clk 0:01:31]}  Rxa1 {[%clk 0:01:40]} 21. Rxa1 {[%clk 0:01:29]}  Nd8 {[%clk 0:01:40]} 22. Ra8 {[%clk 0:01:19]}  Nc5 {[%clk 0:01:34]} 23. Bb4 {[%clk 0:01:15]}  b6 {[%clk 0:01:34]} 24. Ne4 {[%clk 0:01:11]}  Bf5 {[%clk 0:01:24]} 25. Bxc5 {[%clk 0:01:08]}  bxc5 {[%clk 0:01:24]} 26. Qd2 {[%clk 0:01:06]}  Bxe4 {[%clk 0:01:13]} 27. Bxe4 {[%clk 0:01:04]}  Nf7 {[%clk 0:01:13]} 28. Rxe8+ {[%clk 0:00:51]}  Qxe8 {[%clk 0:01:13]} 29. Qa5 {[%clk 0:00:46]}  Qd8 {[%clk 0:01:03]} 30. Bd5 {[%clk 0:00:43]}  Kf8 {[%clk 0:01:04]} 31. Qa7 {[%clk 0:00:43]}  Qd6 {[%clk 0:01:01]} 32. Qb8+ {[%clk 0:00:41]}  Nd8 {[%clk 0:00:27]} 33. b6 {[%clk 0:00:40]} 1-0


[Site "https://www.chess.com"]

[Event "Titled Tuesday Blitz November 14 Late 2023"]
[White "Bogaudinov, Rushan"]
[Black "Sakun, Volodymyr"]
[WhiteFideId "4129288"]
[BlackFideId "14114062"]
[WhiteElo "2411"]
[BlackElo "2615"]
[Result "0-1"]
[Round "6"]
[TimeControl "180+1"]
[Date "2023.11.14"]
[WhiteClock "0:00:50"]
[BlackClock "0:00:48"]
[Board "63"]

1. e4 {[%clk 0:02:59]}  e5 {[%clk 0:02:59]} 2. Nc3 {[%clk 0:02:58]}  Nc6 {[%clk 0:02:59]} 3. g3 {[%clk 0:02:57]}  h5 {[%clk 0:02:57]} 4. h3 {[%clk 0:02:57]}  h4 {[%clk 0:02:56]} 5. g4 {[%clk 0:02:57]}  Nge7 {[%clk 0:02:53]} 6. Bg2 {[%clk 0:02:51]}  Ng6 {[%clk 0:02:53]} 7. d3 {[%clk 0:02:51]}  Be7 {[%clk 0:02:51]} 8. Nge2 {[%clk 0:02:50]}  Bg5 {[%clk 0:02:49]} 9. O-O {[%clk 0:02:44]}  d6 {[%clk 0:02:43]} 10. Nd5 {[%clk 0:02:39]}  Bxc1 {[%clk 0:02:41]} 11. Qxc1 {[%clk 0:02:37]}  Be6 {[%clk 0:02:35]} 12. c4 {[%clk 0:02:30]}  Bxd5 {[%clk 0:02:19]} 13. cxd5 {[%clk 0:02:27]}  Nce7 {[%clk 0:02:19]} 14. f4 {[%clk 0:02:07]}  exf4 {[%clk 0:02:14]} 15. Nxf4 {[%clk 0:02:05]}  Nxf4 {[%clk 0:02:05]} 16. Qxf4 {[%clk 0:02:06]}  O-O {[%clk 0:02:05]} 17. d4 {[%clk 0:01:53]}  Ng6 {[%clk 0:02:03]} 18. Qf5 {[%clk 0:01:50]}  c6 {[%clk 0:01:51]} 19. dxc6 {[%clk 0:01:48]}  bxc6 {[%clk 0:01:51]} 20. b3 {[%clk 0:01:41]}  Qb6 {[%clk 0:01:49]} 21. Rad1 {[%clk 0:01:40]}  a5 {[%clk 0:01:40]} 22. Kh1 {[%clk 0:01:34]}  a4 {[%clk 0:01:34]} 23. e5 {[%clk 0:01:32]}  axb3 {[%clk 0:01:22]} 24. axb3 {[%clk 0:01:31]}  dxe5 {[%clk 0:01:18]} 25. dxe5 {[%clk 0:01:30]}  Qxb3 {[%clk 0:01:16]} 26. Rd3 {[%clk 0:01:13]}  Qc4 {[%clk 0:01:05]} 27. Re3 {[%clk 0:01:02]}  Rae8 {[%clk 0:00:52]} 28. Re2 {[%clk 0:00:56]}  Qxe2 {[%clk 0:00:48]} 29. Rf2 {[%clk 0:00:53]}  Qe1+ {[%clk 0:00:48]} 30. Kh2 {[%clk 0:00:50]}  Qxe5+ {[%clk 0:00:48]} 0-1


[Site "https://www.chess.com"]

[Event "Titled Tuesday Blitz November 14 Late 2023"]
[White "Roberson, Peter T"]
[Black "Weak-Player_EGY"]
[WhiteFideId "412384"]
[WhiteElo "2611"]
[BlackElo "2371"]
[Result "1-0"]
[Round "6"]
[TimeControl "180+1"]
[Date "2023.11.14"]
[WhiteClock "0:01:02"]
[BlackClock "0:01:12"]
[Board "64"]

1. Nf3 {[%clk 0:03:00]}  Nf6 {[%clk 0:02:56]} 2. e3 {[%clk 0:02:59]}  g6 {[%clk 0:02:53]} 3. d4 {[%clk 0:02:59]}  Bg7 {[%clk 0:02:53]} 4. Be2 {[%clk 0:03:00]}  O-O {[%clk 0:02:54]} 5. O-O {[%clk 0:03:01]}  c5 {[%clk 0:02:53]} 6. d5 {[%clk 0:03:00]}  d6 {[%clk 0:02:50]} 7. c4 {[%clk 0:02:58]}  a6 {[%clk 0:02:51]} 8. a4 {[%clk 0:02:58]}  Bd7 {[%clk 0:02:48]} 9. Nc3 {[%clk 0:02:58]}  Qa5 {[%clk 0:02:46]} 10. Bd2 {[%clk 0:02:53]}  Qc7 {[%clk 0:02:45]} 11. h3 {[%clk 0:02:50]}  Rc8 {[%clk 0:02:44]} 12. e4 {[%clk 0:02:50]}  Be8 {[%clk 0:02:44]} 13. Re1 {[%clk 0:02:48]}  Nbd7 {[%clk 0:02:44]} 14. Bf1 {[%clk 0:02:46]}  Rab8 {[%clk 0:02:45]} 15. Bf4 {[%clk 0:02:46]}  Qa5 {[%clk 0:02:38]} 16. Bh2 {[%clk 0:02:41]}  Qb4 {[%clk 0:02:33]} 17. Qc2 {[%clk 0:02:35]}  Nb6 {[%clk 0:02:28]} 18. e5 {[%clk 0:02:26]}  dxe5 {[%clk 0:01:59]} 19. Nxe5 {[%clk 0:02:25]}  Ra8 {[%clk 0:01:54]} 20. a5 {[%clk 0:02:22]}  Nbd7 {[%clk 0:01:46]} 21. Ra4 {[%clk 0:02:05]}  Nxe5 {[%clk 0:01:43]} 22. Rxb4 {[%clk 0:02:05]}  cxb4 {[%clk 0:01:43]} 23. Bxe5 {[%clk 0:01:54]}  bxc3 {[%clk 0:01:42]} 24. Bxc3 {[%clk 0:01:54]}  Rab8 {[%clk 0:01:40]} 25. Rxe7 {[%clk 0:01:52]}  b6 {[%clk 0:01:39]} 26. axb6 {[%clk 0:01:51]}  Rxb6 {[%clk 0:01:40]} 27. Bd3 {[%clk 0:01:20]}  Kf8 {[%clk 0:01:29]} 28. Qe2 {[%clk 0:01:09]}  Bd7 {[%clk 0:01:12]} 29. Bxf6 {[%clk 0:01:02]} 1-0


[Site "https://www.chess.com"]